fUST/lending_fUST_20241223
["ID","MTS","AMOUNT","RATE_DAILY","PERIOD"]
[346343814,1734900650357,-500.0,0.00014794,2]
[346343815,1734900650367,-500.0,0.00014794,2]
[346343816,1734900650376,-626.46,0.00014794,2]
[346343817,1734900650387,-1474.99,0.00014794,2]
[346343818,1734900650396,-1105.27,0.00014794,2]
[346343819,1734900650406,-616.63,0.00014794,2]
[346343820,1734900650416,-500.0,0.00014794,2]
[346343821,1734900650425,-500.0,0.00014794,2]
[346343822,1734900650436,-564.08,0.00014794,2]
[346343823,1734900650445,-500.0,0.00014794,2]
[346343824,1734900650455,-500.0,0.00014794,2]
[346343825,1734900650464,-500.0,0.00014794,2]
[346343826,1734900650473,-196.07014104,0.00014968,2]
[346343827,1734900650483,-208.48786049,0.00014968,2]
[346343828,1734900650492,-420.0,0.0001501,2]
[346343829,1734900650502,-420.0,0.00015067,2]
[346343830,1734900650512,-237.73439718,0.00015068,2]
[346343831,1734900650522,-500.0,0.00015068,2]
[346343832,1734900650532,-500.0,0.00015068,2]
[346343833,1734900650541,-635.59,0.00015068,2]
[346343834,1734900650552,-500.0,0.00015068,2]
[346343835,1734900650562,-500.0,0.00015068,2]
[346343836,1734900650572,-500.0,0.00015068,2]
[346343837,1734900650582,-500.0,0.00015068,2]
[346343838,1734900650591,-500.0,0.00015068,2]
[346343839,1734900650601,-500.0,0.00015068,2]
[346343840,1734900650611,-500.0,0.00015068,2]
[346343841,1734900650620,-500.0,0.00015068,2]
[346343842,1734900650630,-500.0,0.00015068,2]
[346343843,1734900650640,-500.0,0.00015068,2]
[346343844,1734900650649,-500.0,0.00015068,2]
[346343845,1734900650659,-500.0,0.00015068,2]
[346343846,1734900650668,-1241.53,0.00015068,2]
[346343847,1734900650677,-500.0,0.00015068,2]
[346343848,1734900650687,-168.0,0.00015068,2]
[346343849,1734900650696,-500.0,0.00015068,2]
[346343850,1734900650706,-500.0,0.00015068,2]
[346343851,1734900650715,-765.88,0.00015068,2]
[346343852,1734900650724,-579.49,0.00015068,2]
[346343853,1734900650734,-500.0,0.00015068,2]
[346343854,1734900650743,-500.0,0.00015068,2]
[346343855,1734900650753,-754.75,0.00015068,2]
[346343856,1734900650762,-500.0,0.00015068,2]
[346343857,1734900650771,-500.0,0.00015068,2]
[346343858,1734900650781,-500.0,0.00015068,2]
[346343859,1734900650790,-500.0,0.00015068,2]
[346343860,1734900650800,-585.04,0.00015068,2]
[346343861,1734900650809,-500.0,0.00015068,2]
[346343862,1734900650823,-500.0,0.00015068,2]
[346343863,1734900650833,-531.76,0.00015068,2]
[346343864,1734900650842,-500.0,0.00015068,2]
[346343865,1734900650851,-651.85,0.00015068,2]
[346343866,1734900650861,-500.0,0.00015068,2]
[346343867,1734900650870,-500.0,0.00015068,2]
[346343868,1734900650880,-500.0,0.00015068,2]
[346343869,1734900650889,-500.0,0.00015068,2]
[346343870,1734900650899,-500.0,0.00015068,2]
[346343871,1734900650909,-500.0,0.00015068,2]
[346343872,1734900650919,-505.7,0.00015068,2]
[346343873,1734900650928,-321.37306524,0.00015068,2]
[346343874,1734900650939,-500.0,0.00015068,2]
[346343875,1734900650949,-912.92,0.00015068,2]
[346343876,1734900650958,-500.0,0.00015068,2]
[346343877,1734900650968,-1920.65,0.00015068,2]
[346343878,1734900650978,-500.0,0.00015068,2]
[346343879,1734900650988,-4340.77,0.00015068,2]
[346343880,1734900650997,-500.0,0.00015068,2]
[346343881,1734900651006,-500.0,0.00015068,2]
[346343882,1734900651016,-14749.26,0.00015068,2]
[346343883,1734900651026,-500.0,0.00015068,2]
[346343884,1734900651035,-7227.1,0.00015068,2]
[346343885,1734900651045,-502.64566954,0.00015068,2]
[346343886,1734900651056,-1079.66,0.00015068,2]
[346343887,1734900651071,-500.0,0.00015068,2]
[346343888,1734900651081,-1242.33,0.00015068,2]
[346343889,1734900651091,-651.52,0.00015068,2]
[346343890,1734900651101,-500.0,0.00015068,2]
[346343891,1734900651111,-5023.38,0.00015068,2]
[346343892,1734900651121,-812.7,0.00015068,2]
[346343893,1734900651131,-500.0,0.00015068,2]
[346343894,1734900651141,-744.16,0.00015068,2]
[346343895,1734900651151,-500.0,0.00015068,2]
[346343896,1734900651161,-5575.55,0.00015068,2]
[346343897,1734900651171,-500.0,0.00015068,2]
[346343898,1734900651180,-500.0,0.00015068,2]
[346343899,1734900651190,-500.0,0.00015068,2]
[346343900,1734900651200,-500.0,0.00015068,2]
[346343901,1734900651210,-777.11,0.00015068,2]
[346343902,1734900651219,-500.0,0.00015068,2]
[346343903,1734900651229,-500.0,0.00015068,2]
[346343904,1734900651238,-500.0,0.00015068,2]
[346343905,1734900651248,-1609.14,0.00015068,2]
[346343906,1734900651257,-1837.05,0.00015068,2]
[346343907,1734900651266,-500.0,0.00015068,2]
[346343908,1734900651276,-683.18,0.00015068,2]
[346343909,1734900651285,-500.0,0.00015068,2]
[346343910,1734900651295,-500.0,0.00015068,2]
[346343911,1734900651304,-1552.26,0.00015068,2]
[346343912,1734900651314,-813.0,0.00015068,2]
[346343913,1734900651329,-500.0,0.00015068,2]
[346343914,1734900651338,-851.36,0.00015068,2]
[346343915,1734900651352,-512.65,0.00015068,2]
[346343916,1734900651361,-607.98,0.00015068,2]
[346343917,1734900651370,-500.0,0.00015068,2]
[346343918,1734900651379,-500.0,0.00015068,2]
[346343919,1734900651389,-626.46,0.00015068,2]
[346343920,1734900651399,-1474.99,0.00015068,2]
[346343921,1734900651409,-1105.27,0.00015068,2]
[346343922,1734900651419,-616.63,0.00015068,2]
[346343923,1734900651430,-500.0,0.00015068,2]
[346343924,1734900651440,-500.0,0.00015068,2]
[346343925,1734900651450,-564.08,0.00015068,2]
[346343926,1734900651459,-500.0,0.00015068,2]
[346343927,1734900651468,-500.0,0.00015068,2]
[346343928,1734900651478,-500.0,0.00015068,2]
[346343929,1734900651487,-500.0,0.00015228,2]
[346343930,1734900651496,-1000.0,0.00015263,2]
[346343931,1734900651506,-1000.0,0.00015263,2]
[346343932,1734900651515,-451.08960712,0.00015264,2]
[346343933,1734900651524,-1000.0,0.00015303,2]
[346343934,1734900651533,-918.64626954,0.00015341,2]
[346343935,1734900651542,-500.0,0.00015342,2]
[346343936,1734900651552,-503.02230215,0.00015342,2]
[346343937,1734900651711,-635.59,0.00015342,2]
[346343938,1734900651721,-500.0,0.00015342,2]
[346343939,1734900651730,-500.0,0.00015342,2]
[346343940,1734900651740,-500.0,0.00015342,2]
[346343941,1734900651750,-500.0,0.00015342,2]
[346343942,1734900651760,-500.0,0.00015342,2]
[346343943,1734900651770,-500.0,0.00015342,2]
[346343944,1734900651779,-358.36950069,0.00015342,2]
[346343945,1734900651789,-500.0,0.00015342,2]
[346343946,1734900651798,-500.0,0.00015342,2]
[346343947,1734900651809,-500.0,0.00015342,2]
[346343948,1734900651824,-500.0,0.00015342,2]
[346343949,1734900651834,-258.64401307,0.00015342,2]
[346343950,1734900651843,-1241.53,0.00015342,2]
[346343951,1734900651853,-500.0,0.00015342,2]
[346343952,1734900651863,-168.0,0.00015342,2]
[346343953,1734900651873,-500.0,0.00015342,2]
[346343954,1734900651883,-500.0,0.00015342,2]
[346343955,1734900651893,-765.88,0.00015342,2]
[346343956,1734900651903,-579.49,0.00015342,2]
[346343957,1734900651913,-500.0,0.00015342,2]
[346343958,1734900651923,-500.0,0.00015342,2]
[346343959,1734900651933,-754.75,0.00015342,2]
[346343960,1734900651943,-500.0,0.00015342,2]
[346343961,1734900651953,-500.0,0.00015342,2]
[346343962,1734900651963,-500.0,0.00015342,2]
[346343963,1734900651973,-500.0,0.00015342,2]
[346343964,1734900651982,-585.04,0.00015342,2]
[346343965,1734900651991,-500.0,0.00015342,2]
[346343966,1734900652001,-500.0,0.00015342,2]
[346343967,1734900652010,-531.76,0.00015342,2]
[346343968,1734900652020,-228.32015312,0.00015342,2]
[346343969,1734900652029,-651.85,0.00015342,2]
[346343970,1734900652039,-500.0,0.00015342,2]
[346343971,1734900652049,-500.0,0.00015342,2]
[346343972,1734900652060,-500.0,0.00015342,2]
[346343973,1734900652073,-500.0,0.00015342,2]
[346343974,1734900652083,-500.0,0.00015342,2]
[346343975,1734900652092,-544.66764733,0.00015342,2]
[346343976,1734900652102,-505.7,0.00015342,2]
[346343977,1734900652112,-500.0,0.00015342,2]
[346343978,1734900652122,-912.92,0.00015342,2]
[346343979,1734900652132,-500.0,0.00015342,2]
[346343980,1734900652143,-1920.65,0.00015342,2]
[346343981,1734900652152,-500.0,0.00015342,2]
[346343982,1734900652162,-4340.77,0.00015342,2]
[346343983,1734900652172,-500.0,0.00015342,2]
[346343984,1734900652182,-500.0,0.00015342,2]
[346343985,1734900652191,-14749.26,0.00015342,2]
[346343986,1734900652201,-500.0,0.00015342,2]
[346343987,1734900652210,-7227.1,0.00015342,2]
[346343988,1734900652220,-1079.66,0.00015342,2]
[346343989,1734900652230,-500.0,0.00015342,2]
[346343990,1734900652240,-1242.33,0.00015342,2]
[346343991,1734900652250,-651.52,0.00015342,2]
[346343992,1734900652259,-500.0,0.00015342,2]
[346343993,1734900652269,-5023.38,0.00015342,2]
[346343994,1734900652279,-812.7,0.00015342,2]
[346343995,1734900652288,-500.0,0.00015342,2]
[346343996,1734900652298,-744.16,0.00015342,2]
[346343997,1734900652307,-500.0,0.00015342,2]
[346343998,1734900652322,-5575.55,0.00015342,2]
[346343999,1734900652331,-500.0,0.00015342,2]
[346344000,1734900652340,-500.0,0.00015342,2]
[346344001,1734900652353,-500.0,0.00015342,2]
[346344002,1734900652362,-500.0,0.00015342,2]
[346344003,1734900652372,-777.11,0.00015342,2]
[346344004,1734900652382,-500.0,0.00015342,2]
[346344005,1734900652392,-634.95598755,0.00015342,2]
[346344006,1734900652402,-500.0,0.00015342,2]
[346344007,1734900652411,-1609.14,0.00015342,2]
[346344008,1734900652422,-1837.05,0.00015342,2]
[346344009,1734900652432,-500.0,0.00015342,2]
[346344010,1734900652442,-683.18,0.00015342,2]
[346344011,1734900652451,-500.0,0.00015342,2]
[346344012,1734900652461,-500.0,0.00015342,2]
[346344013,1734900652471,-1552.26,0.00015342,2]
[346344014,1734900652481,-813.0,0.00015342,2]
[346344015,1734900652491,-500.0,0.00015342,2]
[346344016,1734900652500,-851.36,0.00015342,2]
[346344017,1734900652511,-512.65,0.00015342,2]
[346344018,1734900652520,-607.98,0.00015342,2]
[346344019,1734900652530,-500.0,0.00015342,2]
[346344020,1734900652540,-500.0,0.00015342,2]
[346344021,1734900652549,-626.46,0.00015342,2]
[346344022,1734900652558,-1474.99,0.00015342,2]
[346344023,1734900652569,-1105.27,0.00015342,2]
[346344024,1734900652579,-616.63,0.00015342,2]
[346344025,1734900652589,-325.43259865,0.00015342,2]
[346344026,1734900652599,-500.0,0.00015342,2]
[346344027,1734900652608,-564.08,0.00015342,2]
[346344028,1734900652618,-500.0,0.00015342,2]
[346344029,1734900652627,-500.0,0.00015342,2]
[346344030,1734900652637,-500.0,0.00015342,2]
[346344031,1734900652646,-262.9773439,0.00015393,2]
[346344032,1734900652656,-562.0,0.000154,5]
[346344033,1734900652665,-666.0,0.000155,2]
[346344034,1734900652674,-500.0,0.00015616,2]
[346344035,1734900652683,-635.59,0.00015616,2]
[346344036,1734900652693,-281.14426791,0.00015616,2]
[346344037,1734900652703,-500.0,0.00015616,2]
[346344038,1734900652714,-500.0,0.00015616,2]
[346344039,1734900652724,-500.0,0.00015616,2]
[346344040,1734900652734,-500.0,0.00015616,2]
[346344041,1734900652744,-629.54243734,0.00015616,2]
[346344042,1734900652754,-500.0,0.00015616,2]
[346344043,1734900652763,-500.0,0.00015616,2]
[346344044,1734900652773,-500.0,0.00015616,2]
[346344045,1734900652784,-500.0,0.00015616,2]
[346344046,1734900652794,-1241.53,0.00015616,2]
[346344047,1734900652804,-500.0,0.00015616,2]
[346344048,1734900652815,-168.0,0.00015616,2]
[346344049,1734900652825,-500.0,0.00015616,2]
[346344050,1734900652835,-516.72958075,0.00015616,2]
[346344051,1734900652844,-765.88,0.00015616,2]
[346344052,1734900652854,-579.49,0.00015616,2]
[346344053,1734900652864,-500.0,0.00015616,2]
[346344054,1734900652874,-500.0,0.00015616,2]
[346344055,1734900652885,-754.75,0.00015616,2]
[346344056,1734900652895,-500.0,0.00015616,2]
[346344057,1734900652905,-500.0,0.00015616,2]
[346344058,1734900652915,-500.0,0.00015616,2]
[346344059,1734900652924,-500.0,0.00015616,2]
[346344060,1734900652935,-585.04,0.00015616,2]
[346344061,1734900652945,-500.0,0.00015616,2]
[346344062,1734900652955,-500.0,0.00015616,2]
[346344063,1734900652964,-531.76,0.00015616,2]
[346344064,1734900652975,-651.85,0.00015616,2]
[346344065,1734900652986,-500.0,0.00015616,2]
[346344066,1734900652995,-500.0,0.00015616,2]
[346344067,1734900653004,-500.0,0.00015616,2]
[346344068,1734900653014,-500.0,0.00015616,2]
[346344069,1734900653024,-500.0,0.00015616,2]
[346344070,1734900653034,-505.7,0.00015616,2]
[346344071,1734900653044,-500.0,0.00015616,2]
[346344072,1734900653054,-912.92,0.00015616,2]
[346344073,1734900653065,-500.0,0.00015616,2]
[346344074,1734900653076,-1920.65,0.00015616,2]
[346344075,1734900653086,-500.0,0.00015616,2]
[346344076,1734900653096,-4340.77,0.00015616,2]
[346344077,1734900653105,-500.0,0.00015616,2]
[346344078,1734900653115,-500.0,0.00015616,2]
[346344079,1734900653124,-14749.26,0.00015616,2]
[346344080,1734900653134,-500.0,0.00015616,2]
[346344081,1734900653144,-7227.1,0.00015616,2]
[346344082,1734900653154,-1079.66,0.00015616,2]
[346344083,1734900653164,-500.0,0.00015616,2]
[346344084,1734900653173,-1242.33,0.00015616,2]
[346344085,1734900653184,-651.52,0.00015616,2]
[346344086,1734900653194,-500.0,0.00015616,2]
[346344087,1734900653203,-5023.38,0.00015616,2]
[346344088,1734900653213,-812.7,0.00015616,2]
[346344089,1734900653223,-500.0,0.00015616,2]
[346344090,1734900653232,-744.16,0.00015616,2]
[346344091,1734900653242,-554.39124923,0.00015616,2]
[346344092,1734900653252,-5575.55,0.00015616,2]
[346344093,1734900653261,-500.0,0.00015616,2]
[346344094,1734900653272,-500.0,0.00015616,2]
[346344095,1734900653282,-544.83109338,0.00015616,2]
[346344096,1734900653291,-152.41132676,0.00015616,2]
[346344097,1734900653301,-777.11,0.00015616,2]
[346344098,1734900653314,-500.0,0.00015616,2]
[346344099,1734900653324,-500.0,0.00015616,2]
[346344100,1734900653333,-1609.14,0.00015616,2]
[346344101,1734900653343,-1837.05,0.00015616,2]
[346344102,1734900653357,-500.0,0.00015616,2]
[346344103,1734900653366,-683.18,0.00015616,2]
[346344104,1734900653376,-500.0,0.00015616,2]
[346344105,1734900653385,-500.0,0.00015616,2]
[346344106,1734900653396,-1552.26,0.00015616,2]
[346344107,1734900653406,-813.0,0.00015616,2]
[346344108,1734900653415,-500.0,0.00015616,2]
[346344109,1734900653425,-851.36,0.00015616,2]
[346344110,1734900653435,-512.65,0.00015616,2]
[346344111,1734900653446,-607.98,0.00015616,2]
[346344112,1734900653455,-500.0,0.00015616,2]
[346344113,1734900653465,-500.0,0.00015616,2]
[346344114,1734900653475,-626.46,0.00015616,2]
[346344115,1734900653484,-1474.99,0.00015616,2]
[346344116,1734900653494,-1105.27,0.00015616,2]
[346344117,1734900653504,-616.63,0.00015616,2]
[346344118,1734900653514,-500.0,0.00015616,2]
[346344119,1734900653524,-564.08,0.00015616,2]
[346344120,1734900653533,-500.0,0.00015616,2]
[346344121,1734900653543,-500.0,0.00015616,2]
[346344122,1734900653552,-500.0,0.00015616,2]
[346344123,1734900653563,-339.833,0.0001568,2]
[346344124,1734900653573,-1000.0,0.00015776,2]
[346344125,1734900653582,-306.6158763,0.00015878,2]
[346344126,1734900653592,-153.0,0.00015878,2]
[346344127,1734900653601,-500.0,0.0001589,2]
[346344128,1734900653610,-157.519,0.0001589,2]
[346344129,1734900653619,-635.59,0.0001589,2]
[346344130,1734900653629,-500.0,0.0001589,2]
[346344131,1734900653638,-500.0,0.0001589,2]
[346344132,1734900653647,-500.0,0.0001589,2]
[346344133,1734900653657,-500.0,0.0001589,2]
[346344134,1734900653666,-439.78309213,0.0001589,2]
[346344135,1734900653675,-500.0,0.0001589,2]
[346344136,1734900653685,-500.0,0.0001589,2]
[346344137,1734900653694,-500.0,0.0001589,2]
[346344138,1734900653706,-1241.53,0.0001589,2]
[346344139,1734900653718,-500.0,0.0001589,2]
[346344140,1734900653730,-168.0,0.0001589,2]
[346344141,1734900653742,-500.0,0.0001589,2]
[346344142,1734900653754,-765.88,0.0001589,2]
[346344143,1734900653766,-579.49,0.0001589,2]
[346344144,1734900653778,-500.0,0.0001589,2]
[346344145,1734900653788,-500.0,0.0001589,2]
[346344146,1734900653799,-754.75,0.0001589,2]
[346344147,1734900653810,-500.0,0.0001589,2]
[346344148,1734900653824,-500.0,0.0001589,2]
[346344149,1734900653835,-500.0,0.0001589,2]
[346344150,1734900653846,-500.0,0.0001589,2]
[346344151,1734900653857,-585.04,0.0001589,2]
[346344152,1734900653868,-500.0,0.0001589,2]
[346344153,1734900653879,-500.0,0.0001589,2]
[346344154,1734900653891,-531.76,0.0001589,2]
[346344155,1734900653903,-651.85,0.0001589,2]
[346344156,1734900653915,-432.45149488,0.0001589,2]
[346344157,1734900653927,-500.0,0.0001589,2]
[346344158,1734900653939,-500.0,0.0001589,2]
[346344159,1734900653952,-500.0,0.0001589,2]
[346344160,1734900653964,-500.0,0.0001589,2]
[346344161,1734900653974,-505.7,0.0001589,2]
[346344162,1734900653987,-500.0,0.0001589,2]
[346344163,1734900653998,-912.92,0.0001589,2]
[346344164,1734900654009,-500.0,0.0001589,2]
[346344165,1734900654019,-1920.65,0.0001589,2]
[346344166,1734900654031,-500.0,0.0001589,2]
[346344167,1734900654043,-4340.77,0.0001589,2]
[346344168,1734900654054,-500.0,0.0001589,2]
[346344169,1734900654067,-239.71606203,0.0001589,2]
[346344170,1734900654078,-14749.26,0.0001589,2]
[346344171,1734900654089,-500.0,0.0001589,2]
[346344172,1734900654099,-7227.1,0.0001589,2]
[346344173,1734900654109,-1079.66,0.0001589,2]
[346344174,1734900654119,-500.0,0.0001589,2]
[346344175,1734900654131,-1242.33,0.0001589,2]
[346344176,1734900654142,-651.52,0.0001589,2]
[346344177,1734900654152,-500.0,0.0001589,2]
[346344178,1734900654165,-5023.38,0.0001589,2]
[346344179,1734900654177,-812.7,0.0001589,2]
[346344180,1734900654189,-500.0,0.0001589,2]
[346344181,1734900654202,-744.16,0.0001589,2]
[346344182,1734900654214,-5575.55,0.0001589,2]
[346344183,1734900654225,-500.0,0.0001589,2]
[346344184,1734900654237,-500.0,0.0001589,2]
[346344185,1734900654249,-777.11,0.0001589,2]
[346344186,1734900654260,-500.0,0.0001589,2]
[346344187,1734900654271,-500.0,0.0001589,2]
[346344188,1734900654284,-1609.14,0.0001589,2]
[346344189,1734900654295,-1837.05,0.0001589,2]
[346344190,1734900654305,-500.0,0.0001589,2]
[346344191,1734900654316,-683.18,0.0001589,2]
[346344192,1734900654326,-500.0,0.0001589,2]
[346344193,1734900654335,-500.0,0.0001589,2]
[346344194,1734900654347,-1552.26,0.0001589,2]
[346344195,1734900654361,-813.0,0.0001589,2]
[346344196,1734900654372,-500.0,0.0001589,2]
[346344197,1734900654385,-851.36,0.0001589,2]
[346344198,1734900654398,-512.65,0.0001589,2]
[346344199,1734900654410,-607.98,0.0001589,2]
[346344200,1734900654421,-500.0,0.0001589,2]
[346344201,1734900654431,-500.0,0.0001589,2]
[346344202,1734900654441,-626.46,0.0001589,2]
[346344203,1734900654452,-1474.99,0.0001589,2]
[346344204,1734900654463,-1105.27,0.0001589,2]
[346344205,1734900654474,-616.63,0.0001589,2]
[346344206,1734900654486,-435.32579382,0.0001589,2]
[346344207,1734900654497,-564.08,0.0001589,2]
[346344208,1734900654507,-500.0,0.0001589,2]
[346344209,1734900654518,-500.0,0.0001589,2]
[346344210,1734900654528,-500.0,0.0001589,2]
[346344211,1734900654538,-2000.0,0.00016,4]
[346344212,1734900654548,-249.12416994,0.00016026,2]
[346344213,1734900654559,-500.0,0.00016164,2]
[346344214,1734900654574,-635.59,0.00016164,2]
[346344215,1734900654585,-500.0,0.00016164,2]
[346344216,1734900654596,-500.0,0.00016164,2]
[346344217,1734900654608,-500.0,0.00016164,2]
[346344218,1734900654619,-500.0,0.00016164,2]
[346344219,1734900654630,-449.77336874,0.00016164,2]
[346344220,1734900654641,-500.0,0.00016164,2]
[346344221,1734900654653,-500.0,0.00016164,2]
[346344222,1734900654663,-1241.53,0.00016164,2]
[346344223,1734900654674,-500.0,0.00016164,2]
[346344224,1734900654685,-184.57538723,0.00016164,2]
[346344225,1734900654695,-500.0,0.00016164,2]
[346344226,1734900654706,-765.88,0.00016164,2]
[346344227,1734900654717,-579.49,0.00016164,2]
[346344228,1734900654728,-500.0,0.00016164,2]
[346344229,1734900654739,-500.0,0.00016164,2]
[346344230,1734900654750,-754.75,0.00016164,2]
[346344231,1734900654761,-500.0,0.00016164,2]
[346344232,1734900654771,-500.0,0.00016164,2]
[346344233,1734900654782,-500.0,0.00016164,2]
[346344234,1734900654793,-500.0,0.00016164,2]
[346344235,1734900654804,-585.04,0.00016164,2]
[346344236,1734900654819,-500.0,0.00016164,2]
[346344237,1734900654831,-500.0,0.00016164,2]
[346344238,1734900654843,-531.76,0.00016164,2]
[346344239,1734900654854,-651.85,0.00016164,2]
[346344240,1734900654866,-500.0,0.00016164,2]
[346344241,1734900654878,-500.0,0.00016164,2]
[346344242,1734900654889,-196.2020517,0.00016164,2]
[346344243,1734900654900,-500.0,0.00016164,2]
[346344244,1734900654911,-505.7,0.00016164,2]
[346344245,1734900654923,-500.0,0.00016164,2]
[346344246,1734900654934,-912.92,0.00016164,2]
[346344247,1734900654945,-500.0,0.00016164,2]
[346344248,1734900654956,-1920.65,0.00016164,2]
[346344249,1734900654967,-500.0,0.00016164,2]
[346344250,1734900654978,-4340.77,0.00016164,2]
[346344251,1734900654989,-500.0,0.00016164,2]
[346344252,1734900655000,-14749.26,0.00016164,2]
[346344253,1734900655012,-500.0,0.00016164,2]
[346344254,1734900655023,-7227.1,0.00016164,2]
[346344255,1734900655034,-1079.66,0.00016164,2]
[346344256,1734900655044,-500.0,0.00016164,2]
[346344257,1734900655055,-1242.33,0.00016164,2]
[346344258,1734900655070,-651.52,0.00016164,2]
[346344259,1734900655081,-500.0,0.00016164,2]
[346344260,1734900655093,-5023.38,0.00016164,2]
[346344261,1734900655104,-812.7,0.00016164,2]
[346344262,1734900655115,-500.0,0.00016164,2]
[346344263,1734900655127,-744.16,0.00016164,2]
[346344264,1734900655139,-5575.55,0.00016164,2]
[346344265,1734900655149,-500.0,0.00016164,2]
[346344266,1734900655161,-500.0,0.00016164,2]
[346344267,1734900655172,-777.11,0.00016164,2]
[346344268,1734900655183,-500.0,0.00016164,2]
[346344269,1734900655194,-500.0,0.00016164,2]
[346344270,1734900655205,-1609.14,0.00016164,2]
[346344271,1734900655216,-1837.05,0.00016164,2]
[346344272,1734900655227,-500.0,0.00016164,2]
[346344273,1734900655238,-683.18,0.00016164,2]
[346344274,1734900655249,-500.0,0.00016164,2]
[346344275,1734900655259,-500.0,0.00016164,2]
[346344276,1734900655270,-1552.26,0.00016164,2]
[346344277,1734900655280,-813.0,0.00016164,2]
[346344278,1734900655291,-500.0,0.00016164,2]
[346344279,1734900655302,-851.36,0.00016164,2]
[346344280,1734900655315,-512.65,0.00016164,2]
[346344281,1734900655325,-607.98,0.00016164,2]
[346344282,1734900655335,-500.0,0.00016164,2]
[346344283,1734900655347,-500.0,0.00016164,2]
[346344284,1734900655360,-626.46,0.00016164,2]
[346344285,1734900655371,-1474.99,0.00016164,2]
[346344286,1734900655382,-1105.27,0.00016164,2]
[346344287,1734900655394,-616.63,0.00016164,2]
[346344288,1734900655405,-564.08,0.00016164,2]
[346344289,1734900655416,-500.0,0.00016164,2]
[346344290,1734900655427,-500.0,0.00016164,2]
[346344291,1734900655438,-478.0021405,0.00016164,2]
[346344292,1734900655448,-918.64626954,0.00016213,2]
[346344293,1734900655459,-1500.0,0.00016265,2]
[346344294,1734900655470,-1500.0,0.00016265,2]
[346344295,1734900655480,-3874.91,0.000163,2]
[346344296,1734900655491,-1129.43749683,0.0001641,2]
[346344297,1734900655502,-951.87,0.00016438,7]
[346344298,1734900655512,-951.87,0.00016438,7]
[346344299,1734900655523,-951.87,0.00016438,7]
[346344300,1734900655533,-951.87,0.00016438,7]
[346344301,1734900655543,-951.87,0.00016438,7]
[346344302,1734900655554,-951.87,0.00016438,7]
[346344303,1734900655565,-951.87,0.00016438,7]
[346344304,1734900655575,-951.87,0.00016438,7]
[346344305,1734900655585,-951.87,0.00016438,7]
[346344306,1734900655596,-951.87,0.00016438,7]
[346344307,1734900655607,-951.87,0.00016438,7]
[346344308,1734900655618,-951.87,0.00016438,7]
[346344309,1734900655628,-951.87,0.00016438,7]
[346344310,1734900655638,-951.87,0.00016438,7]
[346344311,1734900655648,-951.87,0.00016438,7]
[346344312,1734900655659,-951.87,0.00016438,7]
[346344313,1734900655669,-951.87,0.00016438,7]